Cogmind - Beta 9.5 @@@ ROGUE MODE // 2020.04.07 @ 20:00:57 Player: V_ Result: Self-destructed Performance ------------- Evolutions (1) 500 Regions Visited (2) 400 Robots Destroyed (18) 90 Value Destroyed (469) 469 Prototype IDs (0) 0 Alien Tech Used (0) 0 Bonus (0) 0 TOTAL SCORE: 1459 Bonus ------- None Cogmind --------- Core Integrity 324/400 Matter 225/300 Energy 88/100 System Corruption 0% Temperature Cool (46) Movement Walking (120) Location -9/Materials Parts ------- > --- POWER (2) -------- (None) > --- PROPULSION (2) --- Aluminum Leg > --- UTILITY (2) ------ Visual Processing Unit Improved Terrain Scanner > --- WEAPON (3) ------- Medium Laser > --- INVENTORY (4) ---- Heat Sink Peak State ------------ > --- POWER ------------ Ion Engine Light Ion Engine > --- PROPULSION ------- Aluminum Leg Aluminum Leg > --- UTILITY ---------- Heat Sink Salvage Targeting Computer > --- WEAPON ----------- Particle Gun Electrolaser Electrolaser > --- INVENTORY -------- Heat Sink [Rating: 15] Favorites ----------- Power Ion Engine Engine Ion Engine Propulsion Aluminum Leg Leg Aluminum Leg Utility Heat Sink Device Heat Sink Storage Small Storage Unit Processor Salvage Targeting Computer Weapon Assault Rifle Energy Gun Electrolaser Ballistic Gun Assault Rifle Special Weapon Plasma Cutter Build | -11 -10 -9 ------- Run | Scr Mat Mat Slots Evolved 2 | . . 2 Power 1 | . . 1 Propulsion . | . . . Utility . | . . . Weapon 1 | . . 1 Parts Attached 26 | 6 7 13 Power 2 | 1 . 1 Engine 2 | 1 . 1 Core . | . . . Reactor . | . . . Propulsion 4 | 2 1 1 Treads . | . . . Leg 4 | 2 1 1 Wheel . | . . . Hover . | . . . Flight . | . . . Utility 7 | 1 2 4 Device 4 | . 1 3 Storage 1 | 1 . . Processor 2 | . 1 1 Hackware . | . . . Protection . | . . . Artifact . | . . . Weapon 13 | 2 4 7 Energy Gun 5 | . . 5 Energy Cannon . | . . . Ballistic Gun 6 | 2 2 2 Ballistic Cannon . | . . . Launcher . | . . . Special Weapon 2 | . 2 . Impact Weapon . | . . . Slashing Weapon . | . . . Piercing Weapon . | . . . Special Melee Weapon . | . . . Unidentified Prototypes . | . . . Parts Lost 7 | . 1 6 Power 2 | . . 2 Propulsion 1 | . . 1 Utility . | . . . Weapon 4 | . 1 3 Highest Loss Streak 4 | . 1 4 Average Slot Usage (%) 97 | . 99 95 Engine 17 | . 14 21 Leg 25 | . 28 21 Device 12 | . 13 11 Storage 1 | . 3 . Processor 10 | . 10 10 Energy Gun 9 | . . 22 Ballistic Gun 12 | . 16 7 Special Weapon 6 | . 11 . Naked Turns . | . . . Heaviest Build 18 | 13 14 18 Greatest Support 20 | 20 20 20 Greatest Overweight (x) . | . . . Average Overweight (x) . | . . . Largest Inventory Capacity 6 | 6 6 4 Average Capacity 4 | 4 4 4 Most Carried 4 | 4 4 3 Average Carried 2 | 2 3 1 Final Capacity 6 | 6 4 4 Final Carried 3 | 2 3 1 Class Distribution -------------------- 86% | Mutant 8% | Skirmisher 4% | Gunner Dominant Class ---------------- Mutant | -10/Materials Mutant | -9/Materials Resources | -11 -10 -9 ----------- Run | Scr Mat Mat Matter Collected 516 | 118 254 144 Remotely . | . . . Salvage Created 622 | . 301 321 Parts 42 | . 20 22 Haulers Intercepted . | . . . Recyclers Shooed 1 | . 1 . Parts Field Recycled . | . . . Retrieved Matter . | . . . Parts Self-Destructed . | . . . Prevented . | . . . Kills | -11 -10 -9 ------- Run | Scr Mat Mat Combat Hostiles Destroyed 14 | . 7 7 Guns 14 | . 7 7 Classes Destroyed 5 | . 4 1 Worker 3 | . 2 1 Watcher 1 | . 1 . Swarmer 3 | . 3 . Grunt 8 | . 4 4 Sentry 3 | . . 3 Best Kill Streak 3 | . 2 3 Combat Bots Only 3 | . 2 3 Max Kills in Single Turn 1 | . 1 1 Gunslinging . | . . . Exploded . | . . . Melee . | . . . Uniques/NPCs Destroyed . | . . . Combat | -11 -10 -9 -------- Run | Scr Mat Mat Damage Taken 952 | . 402 550 Core 127 | . 51 76 Absorbed by Shields . | . . . Core Remaining (%) 89 | 100 79 . Volleys Fired 70 | . 25 45 Largest 3 | . 2 3 Hottest 191 | . 40 191 Shots Fired 113 | . 50 63 Gun 95 | . 32 63 Cannon . | . . . Launcher . | . . . Special 18 | . 18 . Kinetic 49 | . 32 17 Thermal 64 | . 18 46 Explosive . | . . . Electromagnetic . | . . . Robot Hit Streak 9 | . 8 9 Robot Miss Streak 3 | . 3 3 Penetration Max . | . . . Secondary Targets 2 | . 2 . Max Gunslinging Chain 1 | . 1 . Shots Hit Robots 75 | . 29 46 Core Hits 31 | . 14 17 Critical Hits 3 | . 3 . Critical Kills 1 | . 1 . Critical Parts Destroyed 2 | . 2 . Melee Attacks . | . . . Impact . | . . . Slashing . | . . . Piercing . | . . . Sneak Attacks . | . . . Combat Hostiles . | . . . Follow-up Attacks . | . . . Damage Inflicted 1020 | . 400 620 Guns 911 | . 297 614 Cannons . | . . . Explosions . | . . . Melee . | . . . Ramming 7 | . 1 6 Kinetic 484 | . 297 187 Thermal 529 | . 102 427 Explosive . | . . . Electromagnetic . | . . . Impact . | . . . Slashing . | . . . Piercing . | . . . Highest Corruption . | . . . Average Corruption . | . . . Corruption Purged . | . . . Overload Shots . | . . . Overflow Damage . | . . . Projectiles . | . . . Explosions . | . . . Melee . | . . . Knockbacks . | . . . Impact . | . . . Kinetic . | . . . Secondary . | . . . Self-Inflicted Damage 3 | . . 3 Shots . | . . . Rammed 2 | . 1 1 Targets Rammed 2 | . 1 1 Kicked . | . . . Crushed . | . . . Highest Temperature 333 | . . 333 Average Temperature 84 | . . 84 Received Heat Transfer 300 | . 117 183 Effects 5 | . . 5 Interference 5 | . . 5 Siege Activations . | . . . Robots Corrupted . | . . . Combat Hostiles . | . . . Parts Fried . | . . . Impact Corruptions . | . . . Robots Melted . | . . . Combat Hostiles . | . . . Parts Melted 3 | . 3 . Heat Transferred 1369 | . 333 1036 Parts Sabotaged . | . . . Parts Stolen . | . . . Parts Stripped . | . . . Power Chain Reactions . | . . . Missiles Intercepted . | . . . Alert | -11 -10 -9 ------- Run | Scr Mat Mat Peak Influence 227 | . 127 227 Average Influence 82 | . 59 130 Maximum Alert Level 1 | . . 1 Low Security (%) 94 | 100 100 86 Level 1 5 | . . 13 Level 2 . | . . . Level 3 . | . . . Level 4 . | . . . Level 5 . | . . . High Security . | . . . Max Security . | . . . Squads Dispatched 1 | . 1 . Investigation . | . . . Extermination . | . . . Reinforcement 1 | . 1 . Assault . | . . . Garrison . | . . . Intercept . | . . . Construction Impeded . | . . . Haulers Reinforced . | . . . Stealth | -11 -10 -9 --------- Run | Scr Mat Mat Distress Signals 1 | . 1 . Communications Jammed . | . . . Distress Signals . | . . . Times Spotted 26 | . 13 13 Peak Tracking Total 4 | . 4 4 Tactical Retreats . | . . . Traps | -11 -10 -9 ------- Run | Scr Mat Mat Traps Triggered . | . . . Indirectly . | . . . Trap Hack Attempts . | . . . Triggered . | . . . Disarmed . | . . . Reprogrammed . | . . . Reused . | . . . Traps Extracted . | . . . Installed . | . . . Triggered . | . . . Machines | -11 -10 -9 ---------- Run | Scr Mat Mat Machines Disabled . | . . . Max in Single Turn . | . . . Machines Sabotaged . | . . . Garrisons Compromised . | . . . Overloaded Fab Kills . | . . . Fab Network Shutdowns . | . . . Hacking | -11 -10 -9 --------- Run | Scr Mat Mat Machines Accessed 2 | . 1 1 Terminals 2 | . 1 1 Fabricators . | . . . Repair Stations . | . . . Recycling Units . | . . . Scanalyzers . | . . . Garrison Access . | . . . Total Hacks 4 | . 2 2 Successful 2 | . 2 . Failed 2 | . . 2 Catastrophic . | . . . Database Lockouts . | . . . Manual . | . . . Terminals 4 | . 2 2 Fabricators . | . . . Repair Stations . | . . . Recycling Units . | . . . Scanalyzers . | . . . Garrison Access . | . . . Terminal Hacks 2 | . 2 . Terminal Index 1 | . 1 . Hauler Manifests 1 | . 1 . Fabricator Hacks . | . . . Repair Station Hacks . | . . . Recycling Unit Hacks . | . . . Scanalyzer . | . . . Garrison Access Hacks . | . . . Unauthorized Hacks . | . . . Terminals . | . . . Fabricators . | . . . Repair Stations . | . . . Recycling Units . | . . . Scanalyzers . | . . . Garrison Access . | . . . Data Cores Recovered . | . . . Used . | . . . Hacking Detections 1 | . . 1 Full Trace Events . | . . . Feedback Events . | . . . Feedback Blocked . | . . . Robot Schematics Acquired . | . . . Robots Built . | . . . Matter . | . . . Time . | . . . Total Robot Build Rating . | . . . Part Schematics Acquired . | . . . Parts Built . | . . . Matter . | . . . Time . | . . . Total Part Build Rating . | . . . Parts Repaired . | . . . Time . | . . . Parts Recycled . | . . . Recycled Matter . | . . . Retrieved Matter . | . . . Retrieved Components . | . . . Parts Scanalyzed . | . . . Part Schematics Acquired . | . . . Parts Damaged . | . . . Bothacking | -11 -10 -9 ------------ Run | Scr Mat Mat Used RIF Installer . | . . . Robots Hacked . | . . . Non-combat . | . . . Combat . | . . . Robot Hacks Applied . | . . . Relay Couplers Released . | . . . Robots Rewired . | . . . Allies Hacked . | . . . Hacks Repelled . | . . . Allies | -11 -10 -9 -------- Run | Scr Mat Mat Total Allies . | . . . Largest Group . | . . . Highest-Rated Group . | . . . Highest-Rated Ally . | . . . Total Orders . | . . . Ally Attacks . | . . . Total Damage . | . . . Kills . | . . . Allies Corrupted . | . . . Allies Melted . | . . . Intel | -11 -10 -9 ------- Run | Scr Mat Mat Robot Analysis Total . | . . . Derelict Logs Recovered . | . . . Drone Launches . | . . . Drone Recoveries . | . . . Exploration | -11 -10 -9 ------------- Run | Scr Mat Mat Turns Passed 1082 | 84 581 417 Spaces Moved 686 | 67 389 230 Core 14 | 14 . . Treads . | . . . Legs 672 | 53 389 230 Wheels . | . . . Hover . | . . . Flight . | . . . Fastest Speed 50 | 50 120 120 Average Speed 118 | 105 120 120 Slowest Speed 120 | 120 120 120 Overloaded Moves . | . . . Propulsion Burnouts . | . . . Robots Hopped . | . . . Cave-ins Triggered . | . . . Exploration Rate (%) 24 | 3 49 20 Regions Visited 2 Branch Regions . Pre-discovered Areas . | . . . Known Exits Taken . | . . . Unknown Exits Taken 2 | 1 1 . Scrap Searched . | . . . Spaces Dug . | . . . Terrain Destroyed . | . . . Melee . | . . . Projectile . | . . . AOE . | . . . Actions | -11 -10 -9 --------- Run | Scr Mat Mat Total 834 | 80 438 316 Wait 10 | . . 10 Move 684 | 66 388 230 Hop . | . . . Pick Up 27 | 8 10 9 Fast Attach . | . . . Attach 24 | 6 6 12 Detach 1 | . . 1 Swap 2 | . 1 1 Drop 14 | . 7 7 Fire 70 | . 25 45 Melee . | . . . Ram . | . . . Kick 2 | . 1 1 Crush . | . . . Escape Stasis . | . . . Rewire . | . . . Trap . | . . . Miscellaneous . | . . . Route ------- -11/Scrapyard -10/Materials (discovered 2 exits: *Mat x2) -9/Materials History --------- Turn | Location | Event 6 | -11/Scrapyard | Discovered new exit (range 14) 85 | -11/Scrapyard | Entered Materials 307 | -10/Materials | Build established: Mutant 431 | -10/Materials | Discovered new exit (range 8) 603 | -10/Materials | Discovered new exit (range 5) 666 | -10/Materials | Entered another Materials area 666 | -9/Materials | Evolved 2 slots: Power x1, Weapon x1 1083 | -9/Materials | Self-destructed Last Messages --------------- U-05 Engineer lays Concrete. Overheating: System interference. Med. Laser temporarily disabled. Electrolaser temporarily disabled. U-05 Engineer lays Concrete. Y-45 Defender destroyed. K-01 Serf collects debris. Electrolaser destroyed. G-34 Mercenary destroyed. K-01 Serf collects debris. G-34 Mercenary destroyed. Acquired 33 matter. Acquired Imp. Terrain Scanner. Dropped Terrain Scanner. Ion Engine destroyed. Shotgun severed. Aluminum Leg destroyed. U-05 Engineer lays Concrete. Med. Laser destroyed. Lgt. Ion Engine destroyed. Map ----- +----------------------------------------------------+ | ????????????????????????????????? | | ????????????????????????????????? | | ??????????????##????????????????? | | ????????????????????????????????? | | ###########?????????????????????? | | # #?????????????????????? | | #"" #??????#########??????? | | #"T ######## #??????? | | #"" ![ # ######## | | # ! # | | # + % | | # # | | # = # ! ######## | | # ##### ## #??????? | | # #???# ##### ####??????? | | # """ #???# #???# #?????????? | | # """"" #####+#???# #?#???????? | | # """"" # #???#+#?????????? | | # """"" # #??? ??????????? | | # """ # #?? ?????????? | | # # #?? ??????????? | | ?########## #?? ??????????? | | ??# ! ! ## #?? ??????????? | | #?# ## #?? """ ????????? | | #?# """ ####+##### """ ???????? | | ??# """ @l w/ """ ???????? | | ??# """ # g r########/###?????? | | #?# !# ###???? | | ??##+##### u^ ?? | | ???# #???# ?? | | ???# #???# ?? | | ##?# #???# """ "??? | | ???# #???# ########### """"????? | | #??# #####[#?????? ???? ""?????? | | ???# !%=##??????????? ?????? | | ???####### #????????????? ????? | | ???? ? ??# #???? ? ?????????????? | | ?????????# #?? ?????????????????? | | ??? ????? = ????+???????????????? | | ?? ??????[%!? ???#??????????????? | | ???? ???? ! #???????????????????? | | ?????????###????????????????????? | | ????????????????????????????????? | | ?#????#?????????????????????????? | | ????????????????????????????????? | | ????????????????????????????????? | | ????????????????????????????????? | | ????????????????????????????????? | | ????????????????????????????????? | | ????????????????????????????????? | +----------------------------------------------------+ Best States ------------- Heat Dissipation 38 Energy Generation 15 Energy Capacity 275 Matter Stores 300 Matter Capacity 300 Sight Range 18 Terrain Scan Range 16 Terrain Scan Density 10 Evasion (%) 50 Salvage Targeting 1 Item Schematics ----------------- None Robot Schematics ------------------ None Fabricated ------------ Nothing Alien Tech Used ----------------- None Achievements -------------- None Challenges ------------ None Game ------ Seed ArmageddonPhaseWell Manual? 0 Play Time 00:17:00 Cumulative 1.2 hours Start 2020.04.07 @ 19:45:59 End 2020.04.07 @ 20:00:57 Sessions 1 Manual Loads 0 Difficulty Rogue Special Mode None Game No. 5 Rogue 5 Adventurer 0 Explorer 0 Win Type - Total 0 Types 0/0/0/0/0/0/0 Lore% 1 Gallery% 4 Achievement% 4 Wizard Run 0 Options --------- ASCII 0 Keyboard 0 Movement Arrows Keybinds 0 Fullscreen 1 Font 24/Smallcaps Map View 76x50 Tactical HUD 0 Map Filters NONE Filters NONE Steam 1 RUN: d9d74442-38af-476b-912d-c391db308f2b